fUSD/lending_fUSD_20260611
["ID","MTS","AMOUNT","RATE_DAILY","PERIOD"]
[424760311,1781131847000,-215.92376884,0.00028,7]
[424760307,1781131847000,-179.66,0.00028,7]
[424760333,1781131847000,-815.98,0.00028099,2]
[424760316,1781131847000,-621.78829552,0.00028013,2]
[424760320,1781131847000,-151.0,0.00028016,3]
[424760324,1781131847000,-899.59,0.00028033,30]
[424760317,1781131847000,-151.0,0.00028013,2]
[424760325,1781131847000,-752.18,0.00028033,30]
[424760322,1781131847000,-752.49,0.00028033,30]
[424760319,1781131847000,-251.11897888,0.00028015,2]
[424760323,1781131847000,-1902.99,0.00028033,30]
[424760318,1781131847000,-775.4783256,0.00028013,2]
[424760321,1781131847000,-151.0,0.00028016,3]
[424760326,1781131847000,-899.42,0.00028033,30]
[424760301,1781131847000,-815.98,0.00027946,7]
[424760310,1781131847000,-215.92376884,0.00028,10]
[424760302,1781131847000,-150.0,0.00027973,2]
[424760287,1781131847000,-816.16,0.00027855,7]
[424760303,1781131847000,-816.16,0.00027977,30]
[424760328,1781131847000,-816.16,0.00028038,7]
[424760275,1781131847000,-816.16,0.00027794,30]
[424760274,1781131847000,-815.98,0.00027763,7]
[424760272,1781131847000,-815.98,0.00027733,2]
[424760273,1781131847000,-816.16,0.00027763,7]
[424760276,1781131847000,-815.98,0.00027794,30]
[424760278,1781131847000,-815.98,0.00027824,2]
[424760279,1781131847000,-3556.0,0.00027847,2]
[424760281,1781131847000,-382.0,0.00027847,2]
[424760280,1781131847000,-1358.0,0.00027847,2]
[424760291,1781131847000,-899.59,0.00027872,2]
[424760283,1781131847000,-150.0,0.00027847,2]
[424760299,1781131847000,-180.37572735,0.00027928,2]
[424760282,1781131847000,-1274.0,0.00027847,2]
[424760288,1781131847000,-815.98,0.00027855,7]
[424760289,1781131847000,-752.49,0.00027872,2]
[424760286,1781131847000,-151.0,0.0002785,7]
[424760290,1781131847000,-1902.99,0.00027872,2]
[424760285,1781131847000,-419.0,0.00027847,2]
[424760292,1781131847000,-899.42,0.00027872,2]
[424760295,1781131847000,-816.16,0.00027885,30]
[424760293,1781131847000,-752.18,0.00027872,2]
[424760297,1781131847000,-816.16,0.00027916,2]
[424760294,1781131847000,-1903.01,0.00027872,2]
[424760296,1781131847000,-815.98,0.00027885,30]
[424760298,1781131847000,-815.98,0.00027916,2]
[424760284,1781131847000,-933.0,0.00027847,2]
[424760334,1781131847000,-816.24,0.0002813,7]
[424760277,1781131847000,-816.16,0.00027824,2]
[424760330,1781131847000,-816.16,0.00028068,30]
[424760360,1781131847000,-306.92494934,0.0002874,7]
[424760364,1781131847000,-321.0958917,0.0002874,7]
[424760363,1781131847000,-374.37764819,0.0002874,7]
[424760372,1781131847000,-496.96511554,0.00028792,7]
[424760371,1781131847000,-501.5481889,0.00028792,7]
[424760367,1781131847000,-204.46023158,0.00028745,7]
[424760366,1781131847000,-355.80133448,0.00028745,7]
[424760369,1781131847000,-309.7899218,0.00028745,7]
[424760365,1781131847000,-302.969793,0.0002874,7]
[424760368,1781131847000,-356.94305244,0.00028745,7]
[424760370,1781131847000,-153.80113636,0.00028766,2]
[424760384,1781131847000,-571.0,0.000289,2]
[424760362,1781131847000,-302.15929923,0.0002874,7]
[424760373,1781131847000,-284.95203121,0.000288,10]
[424760385,1781131847000,-2000.0,0.00028935,30]
[424760375,1781131847000,-417.54099781,0.00028821,7]
[424760376,1781131847000,-301.60942624,0.00028821,7]
[424760382,1781131847000,-200.0,0.000289,2]
[424760379,1781131847000,-317.20365296,0.00028821,7]
[424760377,1781131847000,-310.43373023,0.00028821,7]
[424760378,1781131847000,-321.67197838,0.00028821,7]
[424760383,1781131847000,-341.0,0.000289,2]
[424760381,1781131847000,-200.0,0.000289,2]
[424760380,1781131847000,-151.0,0.00028821,7]
[424760387,1781131847000,-701.0,0.00028935,30]
[424760327,1781131847000,-1903.01,0.00028033,30]
[424760374,1781131847000,-383.37316036,0.00028821,7]
[424760361,1781131847000,-324.07743386,0.0002874,7]
[424760386,1781131847000,-2000.0,0.00028935,30]
[424760359,1781131847000,-324.46242171,0.0002874,7]
[424760355,1781131847000,-337.39927917,0.00028739,5]
[424760329,1781131847000,-815.98,0.00028038,7]
[424760331,1781131847000,-815.98,0.00028068,30]
[424760336,1781131847000,-1902.99,0.00028194,7]
[424760335,1781131847000,-816.02,0.0002813,7]
[424760338,1781131847000,-899.59,0.00028194,7]
[424760337,1781131847000,-752.49,0.00028194,7]
[424760339,1781131847000,-752.18,0.00028194,7]
[424760340,1781131847000,-899.42,0.00028194,7]
[424760342,1781131847000,-9873.23527869,0.00028199,2]
[424760341,1781131847000,-1903.01,0.00028194,7]
[424760347,1781131847000,-170.1,0.0002831,2]
[424760345,1781131847000,-1659.83,0.00028283,2]
[424760332,1781131847000,-816.16,0.00028099,2]
[424760346,1781131847000,-502.36,0.000283,7]
[424760358,1781131847000,-359.06853467,0.0002874,7]
[424760354,1781131847000,-312.46443378,0.00028739,2]
[424760350,1781131847000,-150.0,0.00028493,2]
[424760343,1781131847000,-382.1,0.00028267,2]
[424760349,1781131847000,-1170.68,0.00028365,7]
[424760353,1781131847000,-305.2332583,0.00028738,7]
[424760351,1781131847000,-260.4103811,0.00028563,2]
[424760356,1781131847000,-315.6735553,0.0002874,7]
[424760357,1781131847000,-361.64373084,0.0002874,7]
[424760348,1781131847000,-1524.93,0.00028336,2]
[424760344,1781131847000,-2000.0,0.00028283,2]
[424760352,1781131847000,-562.5,0.00028699,120]
[424760425,1781131848000,-231.0,0.00029199,30]
[424760428,1781131848000,-208.0,0.00029199,30]
[424760424,1781131848000,-1088.0,0.00029199,30]
[424760423,1781131848000,-731.0,0.00029199,30]
[424760418,1781131848000,-1540.87,0.000291,4]
[424760421,1781131848000,-176.48846762,0.00029197,30]
[424760422,1781131848000,-157.61337016,0.00029197,30]
[424760419,1781131848000,-270.0455652,0.00029111,2]
[424760415,1781131848000,-500.0,0.00029,2]
[424760420,1781131848000,-500.0,0.00029184,120]
[424760427,1781131848000,-634.0,0.00029199,30]
[424760437,1781131848000,-283.0,0.00029202,30]
[424760429,1781131848000,-183.0,0.00029199,30]
[424760431,1781131848000,-190.0,0.00029199,30]
[424760432,1781131848000,-334.0,0.00029199,30]
[424760433,1781131848000,-5000.0,0.000292,2]
[424760436,1781131848000,-347.0,0.00029202,30]
[424760434,1781131848000,-245.0,0.00029202,30]
[424760438,1781131848000,-151.0,0.00029228,3]
[424760440,1781131848000,-1650.0,0.00029379,10]
[424760439,1781131848000,-150.0,0.00029372,2]
[424760417,1781131848000,-30182.06135996,0.00029032,2]
[424760435,1781131848000,-345.0,0.00029202,30]
[424760426,1781131848000,-156.0,0.00029199,30]
[424760414,1781131848000,-1164.202069,0.00029,7]
[424760405,1781131848000,-10000.0,0.00029,2]
[424760413,1781131848000,-1164.202069,0.00029,7]
[424760430,1781131848000,-720.0,0.00029199,30]
[424760395,1781131848000,-536.88,0.00029,2]
[424760388,1781131848000,-186.24909246,0.00028971,2]
[424760389,1781131848000,-290.45,0.00028971,30]
[424760390,1781131848000,-500.0,0.00029,2]
[424760394,1781131848000,-151.69,0.00029,2]
[424760392,1781131848000,-500.0,0.00029,2]
[424760391,1781131848000,-500.0,0.00029,2]
[424760393,1781131848000,-151.69,0.00029,2]
[424760396,1781131848000,-500.0,0.00029,2]
[424760407,1781131848000,-500.0,0.00029,2]
[424760398,1781131848000,-500.0,0.00029,2]
[424760397,1781131848000,-500.0,0.00029,2]
[424760406,1781131848000,-10000.0,0.00029,2]
[424760400,1781131848000,-500.0,0.00029,2]
[424760399,1781131848000,-536.88,0.00029,2]
[424760403,1781131848000,-216.96,0.00029,2]
[424760401,1781131848000,-536.88,0.00029,2]
[424760404,1781131848000,-224.0,0.00029,7]
[424760402,1781131848000,-536.87,0.00029,2]
[424760409,1781131848000,-1135.0,0.00029,2]
[424760408,1781131848000,-500.0,0.00029,2]
[424760411,1781131848000,-1164.202069,0.00029,7]
[424760412,1781131848000,-1164.202069,0.00029,7]
[424760410,1781131848000,-500.0,0.00029,2]
[424760416,1781131848000,-527.39395721,0.00029,2]
[424760442,1781131848000,-150.0,0.00029589,7]
[424760445,1781131848000,-150.0,0.00029589,7]
[424760450,1781131848000,-203.80794025,0.00029589,7]
[424760474,1781131848000,-481.64383756,0.00029604,7]
[424760472,1781131848000,-453.23894884,0.00029604,7]
[424760476,1781131848000,-533.70200173,0.00029609,7]
[424760477,1781131848000,-408.92046315,0.00029609,7]
[424760484,1781131848000,-281.07966398,0.00029622,7]
[424760479,1781131848000,-464.6848827,0.00029609,7]
[424760485,1781131848000,-150.0,0.00029642,7]
[424760478,1781131848000,-535.41457866,0.00029609,7]
[424760483,1781131848000,-500.0,0.00029614,120]
[424760482,1781131848000,-568.14,0.00029614,2]
[424760481,1781131848000,-500.0,0.00029614,120]
[424760473,1781131848000,-561.56647229,0.00029604,7]
[424760480,1781131848000,-551.34,0.00029614,120]
[424760495,1781131848000,-150.0,0.00029678,7]
[424760488,1781131848000,-211.52589401,0.00029657,7]
[424760496,1781131848000,-221.31728835,0.00029687,7]
[424760487,1781131848000,-752.32228335,0.00029657,7]
[424760494,1781131848000,-150.0,0.00029664,7]
[424760493,1781131848000,-150.0,0.00029661,7]
[424760492,1781131848000,-404.72106295,0.00029659,2]
[424760491,1781131848000,-188.43621114,0.00029657,7]
[424760446,1781131848000,-150.0,0.00029589,7]
[424760490,1781131848000,-225.2217329,0.00029657,7]
[424760497,1781131848000,-575.05974053,0.00029687,7]
[424760486,1781131848000,-281.07966398,0.00029655,7]
[424760470,1781131848000,-460.38742401,0.00029604,7]
[424760489,1781131848000,-745.4476733,0.00029657,7]
[424760464,1781131848000,-468.69665066,0.00029603,2]
[424760467,1781131848000,-542.46559626,0.00029604,7]
[424760447,1781131848000,-150.0,0.00029589,7]
[424760441,1781131848000,-275.0,0.00029379,2]
[424760449,1781131848000,-150.0,0.00029589,7]
[424760448,1781131848000,-150.0,0.00029589,7]
[424760443,1781131848000,-150.0,0.00029589,7]
[424760451,1781131848000,-281.07966398,0.00029589,7]
[424760456,1781131848000,-785.692483,0.00029602,7]
[424760452,1781131848000,-150.0,0.00029589,7]
[424760463,1781131848000,-185.2604125,0.00029603,7]
[424760454,1781131848000,-785.692483,0.00029602,7]
[424760457,1781131848000,-785.692483,0.00029602,7]
[424760444,1781131848000,-150.0,0.00029589,7]
[424760453,1781131848000,-151.0,0.00029602,7]
[424760460,1781131848000,-171.04982114,0.00029602,7]
[424760466,1781131848000,-473.51033295,0.00029603,7]
[424760468,1781131848000,-538.602802,0.00029604,7]
[424760471,1781131848000,-486.11615078,0.00029604,7]
[424760465,1781131848000,-506.09891875,0.00029603,5]
[424760475,1781131848000,-454.45468949,0.00029604,7]
[424760461,1781131848000,-457.84988745,0.00029602,7]
[424760458,1781131848000,-181.32982294,0.00029602,7]
[424760462,1781131848000,-150.87114389,0.00029602,7]
[424760459,1781131848000,-169.58866854,0.00029602,7]
[424760455,1781131848000,-785.692483,0.00029602,7]
[424760469,1781131848000,-486.69363256,0.00029604,7]
[424760524,1781131849000,-281.07966398,0.00029722,7]
[424760533,1781131849000,-150.0,0.00029813,7]
[424760526,1781131849000,-150.0,0.00029738,7]
[424760527,1781131849000,-150.0,0.00029748,7]
[424760530,1781131849000,-281.07966398,0.00029788,7]
[424760535,1781131849000,-150.0,0.00029854,7]
[424760528,1781131849000,-281.07966398,0.00029755,7]
[424760531,1781131849000,-150.0,0.00029801,7]
[424760532,1781131849000,-150.0,0.00029803,7]
[424760534,1781131849000,-281.07966398,0.00029822,7]
[424760539,1781131849000,-150.0,0.00029863,7]
[424760537,1781131849000,-150.0,0.00029856,7]
[424760536,1781131849000,-281.07966398,0.00029855,7]
[424760541,1781131849000,-150.0,0.00029888,7]
[424760542,1781131849000,-281.07966398,0.00029888,7]
[424760544,1781131849000,-281.07966398,0.00029921,7]
[424760545,1781131849000,-150.0,0.00029944,7]
[424760540,1781131849000,-150.0,0.00029875,7]
[424760543,1781131849000,-150.0,0.00029907,7]
[424760538,1781131849000,-150.0,0.00029863,2]
[424760523,1781131849000,-914.96,0.00029711,2]
[424760529,1781131849000,-150.0,0.00029767,7]
[424760522,1781131849000,-150.0,0.00029695,7]
[424760516,1781131849000,-225.21297495,0.00029687,7]
[424760521,1781131849000,-281.07966398,0.00029689,7]
[424760498,1781131849000,-626.31149671,0.00029687,7]
[424760503,1781131849000,-230.67104731,0.00029687,7]
[424760500,1781131849000,-259.94548218,0.00029687,7]
[424760501,1781131849000,-205.58962839,0.00029687,7]
[424760499,1781131849000,-217.93422179,0.00029687,7]
[424760502,1781131849000,-275.66086007,0.00029687,7]
[424760505,1781131849000,-151.37432773,0.00029687,7]
[424760504,1781131849000,-216.37775023,0.00029687,7]
[424760506,1781131849000,-194.51230655,0.00029687,7]
[424760508,1781131849000,-452.41413937,0.00029687,7]
[424760525,1781131849000,-150.0,0.00029732,7]
[424760515,1781131849000,-238.04654023,0.00029687,7]
[424760511,1781131849000,-482.50796757,0.00029687,7]
[424760514,1781131849000,-214.77983455,0.00029687,7]
[424760513,1781131849000,-240.00984398,0.00029687,7]
[424760507,1781131849000,-194.18605571,0.00029687,7]
[424760512,1781131849000,-154.30688643,0.00029687,5]
[424760510,1781131849000,-220.93954072,0.00029687,7]
[424760518,1781131849000,-475.80547943,0.00029687,7]
[424760517,1781131849000,-253.04988814,0.00029687,7]
[424760519,1781131849000,-171.3763261,0.00029687,7]
[424760520,1781131849000,-286.75068551,0.00029687,7]
[424760509,1781131849000,-465.65059535,0.00029687,7]
[424760546,1781131849000,-150.0,0.00029946,7]
[424760553,1781131849000,-151.0,0.00029999,7]
[424760548,1781131849000,-515.39,0.00029957,2]
[424760577,1781131849000,-150.0,0.00030112,7]
[424760587,1781131849000,-33054.76079431,0.0003013,7]
[424760578,1781131849000,-150.0,0.00030119,7]
[424760576,1781131849000,-150.0,0.00030089,7]
[424760586,1781131849000,-1173.89741657,0.0003013,7]
[424760581,1781131849000,-644.04,0.00030122,2]
[424760579,1781131849000,-281.07966398,0.0003012,7]
[424760584,1781131849000,-151.0,0.00030127,7]
[424760582,1781131849000,-325.41,0.00030122,2]
[424760585,1781131849000,-6209.0806999,0.0003013,7]
[424760575,1781131849000,-281.07966398,0.00030087,7]
[424760580,1781131849000,-150.0,0.00030122,7]
[424760588,1781131849000,-153.80113636,0.00030135,2]
[424760590,1781131849000,-157.69923417,0.00030137,7]
[424760592,1781131849000,-1125.82,0.00030137,30]
[424760591,1781131849000,-576.7,0.00030137,5]
[424760594,1781131849000,-501.0,0.00030137,30]
[424760593,1781131849000,-150.0,0.00030137,7]
[424760596,1781131849000,-150.0,0.00030137,30]
[424760595,1781131849000,-169.0,0.00030137,30]
[424760597,1781131849000,-281.07966398,0.00030154,7]
[424760547,1781131849000,-281.07966398,0.00029954,7]
[424760589,1781131849000,-226.60872731,0.00030137,7]
[424760567,1781131849000,-150.0,0.00030033,7]
[424760583,1781131849000,-644.04,0.00030122,2]
[424760573,1781131849000,-150.0,0.00030066,7]
[424760572,1781131849000,-281.07966398,0.00030054,7]
[424760550,1781131849000,-150.0,0.00029963,7]
[424760551,1781131849000,-281.07966398,0.00029988,7]
[424760554,1781131849000,-151.0,0.00029999,7]
[424760552,1781131849000,-500.0,0.00029999,120]
[424760556,1781131849000,-369.24803815,0.0003,30]
[424760557,1781131849000,-3210.89,0.0003,2]
[424760561,1781131849000,-502.36,0.0003,7]
[424760564,1781131849000,-150.0,0.00030013,7]
[424760558,1781131849000,-12500.0,0.0003,2]
[424760563,1781131849000,-150.0,0.0003,7]
[424760549,1781131849000,-150.0,0.0002996,7]
[424760555,1781131849000,-2564.14,0.00029999,7]
[424760559,1781131849000,-22500.0,0.0003,2]
[424760570,1781131849000,-200.0,0.00030045,2]
[424760569,1781131849000,-1170.68,0.00030039,7]
[424760574,1781131849000,-152.0,0.00030084,7]
[424760568,1781131849000,-150.0,0.00030037,7]
[424760571,1781131849000,-152.0,0.00030053,3]
[424760562,1781131849000,-200.0,0.0003,2]
[424760565,1781131849000,-150.0,0.00030018,7]
[424760560,1781131849000,-650.0,0.0003,2]
[424760566,1781131849000,-281.07966398,0.00030021,7]
[424760635,1781131850000,-500.1,0.00030191,3]
[424760626,1781131850000,-711.60266897,0.00030185,7]
[424760628,1781131850000,-713.88610488,0.00030185,7]
[424760638,1781131850000,-731.0,0.00030199,30]
[424760629,1781131850000,-619.57984361,0.00030185,7]
[424760637,1781131850000,-563.27484258,0.00030191,3]
[424760632,1781131850000,-9873.23527869,0.00030188,2]
[424760625,1781131850000,-339.17733709,0.00030185,7]
[424760631,1781131850000,-281.07966398,0.00030187,7]
[424760634,1781131850000,-500.1,0.00030191,3]
[424760630,1781131850000,-150.0,0.00030187,7]
[424760641,1781131850000,-156.0,0.00030199,30]
[424760636,1781131850000,-500.1,0.00030191,3]
[424760640,1781131850000,-231.0,0.00030199,30]
[424760639,1781131850000,-1088.0,0.00030199,30]
[424760642,1781131850000,-634.0,0.00030199,30]
[424760643,1781131850000,-208.0,0.00030199,30]
[424760646,1781131850000,-190.0,0.00030199,30]
[424760645,1781131850000,-720.0,0.00030199,30]
[424760644,1781131850000,-183.0,0.00030199,30]
[424760647,1781131850000,-334.0,0.00030199,30]
[424760627,1781131850000,-613.38069473,0.00030185,7]
[424760633,1781131850000,-500.1,0.00030191,3]
[424760622,1781131850000,-748.75529638,0.0003018,7]
[424760598,1781131850000,-150.0,0.00030161,7]
[424760624,1781131850000,-605.93958599,0.0003018,7]
[424760649,1781131850000,-193.54,0.00030202,7]
[424760599,1781131850000,-150.0,0.00030172,7]
[424760604,1781131850000,-409.45622741,0.00030178,7]
[424760600,1781131850000,-573.16,0.00030174,2]
[424760602,1781131850000,-308.79649143,0.00030178,2]
[424760607,1781131850000,-610.4665166,0.00030178,7]
[424760603,1781131850000,-239.26414617,0.00030178,7]
[424760601,1781131850000,-315.40867109,0.00030176,7]
[424760606,1781131850000,-342.09964227,0.00030178,7]
[424760605,1781131850000,-164.10870769,0.00030178,7]
[424760609,1781131850000,-301.74228779,0.00030178,7]
[424760608,1781131850000,-187.00532554,0.00030178,7]
[424760616,1781131850000,-723.28746169,0.0003018,7]
[424760613,1781131850000,-480.01968796,0.00030179,7]
[424760614,1781131850000,-674.79855834,0.00030179,5]
[424760612,1781131850000,-624.92886755,0.00030179,2]
[424760615,1781131850000,-631.3471106,0.00030179,7]
[424760617,1781131850000,-718.13706933,0.0003018,7]
[424760611,1781131850000,-410.64966736,0.00030179,7]
[424760618,1781131850000,-648.92484341,0.0003018,7]
[424760623,1781131850000,-642.19178341,0.0003018,7]
[424760620,1781131850000,-648.15486771,0.0003018,7]
[424760619,1781131850000,-613.84989869,0.0003018,7]
[424760621,1781131850000,-604.31859846,0.0003018,7]
[424760648,1781131850000,-200.0,0.000302,10]
[424760610,1781131850000,-185.40012574,0.00030179,7]
[424760652,1781131850000,-347.0,0.00030202,30]
[424760672,1781131850000,-766.74632071,0.00030264,7]
[424760677,1781131850000,-519.89096436,0.00030264,7]
[424760679,1781131850000,-411.17925677,0.00030264,7]
[424760683,1781131850000,-432.75550045,0.00030264,7]
[424760682,1781131850000,-461.34209463,0.00030264,7]
[424760686,1781131850000,-388.37211142,0.00030264,7]
[424760684,1781131850000,-302.74865546,0.00030264,7]
[424760685,1781131850000,-389.02461309,0.00030264,7]
[424760687,1781131850000,-603.21885249,0.00030264,7]
[424760698,1781131850000,-573.50137102,0.00030264,7]
[424760688,1781131850000,-441.87908144,0.00030264,7]
[424760691,1781131850000,-308.61377285,0.00030264,5]
[424760689,1781131850000,-620.86746046,0.00030264,7]
[424760692,1781131850000,-224.46304643,0.00030264,7]
[424760694,1781131850000,-476.09308045,0.00030264,7]
[424760696,1781131850000,-634.40730591,0.00030264,7]
[424760693,1781131850000,-429.5596691,0.00030264,7]
[424760697,1781131850000,-342.75265221,0.00030264,7]
[424760695,1781131850000,-506.09977629,0.00030264,7]
[424760700,1781131850000,-150.0,0.00030278,7]
[424760699,1781131850000,-1102.23200891,0.0003027,2]
[424760701,1781131850000,-151.0,0.00030285,7]
[424760650,1781131850000,-245.0,0.00030202,30]
[424760676,1781131850000,-435.86844357,0.00030264,7]
[424760674,1781131850000,-494.41904141,0.00030264,7]
[424760690,1781131850000,-643.34395676,0.00030264,7]
[424760675,1781131850000,-376.87242228,0.00030264,7]
[424760681,1781131850000,-240.79250091,0.00030264,7]
[424760655,1781131850000,-281.07966398,0.0003022,7]
[424760657,1781131850000,-152.0,0.00030227,7]
[424760653,1781131850000,-283.0,0.00030202,30]
[424760656,1781131850000,-150.0,0.00030225,7]
[424760654,1781131850000,-150.0,0.00030211,7]
[424760659,1781131850000,-1003.09637781,0.00030234,7]
[424760666,1781131850000,-500.0,0.00030263,2]
[424760669,1781131850000,-562.5,0.00030263,120]
[424760658,1781131850000,-150.0,0.00030232,7]
[424760662,1781131850000,-450.44346581,0.00030234,7]
[424760661,1781131850000,-993.93023107,0.00030234,7]
[424760665,1781131850000,-150.0,0.00030262,7]
[424760663,1781131850000,-382.1,0.00030239,2]
[424760680,1781131850000,-551.32172015,0.00030264,7]
[424760673,1781131850000,-835.08199562,0.00030264,7]
[424760671,1781131850000,-315.39846833,0.00030264,7]
[424760670,1781131850000,-442.6345767,0.00030264,7]
[424760678,1781131850000,-166.82082127,0.00030264,7]
[424760667,1781131850000,-500.0,0.00030263,7]
[424760664,1781131850000,-281.07966398,0.00030253,7]
[424760660,1781131850000,-423.05178802,0.00030234,7]
[424760668,1781131850000,-3377.03,0.00030263,2]
[424760651,1781131850000,-345.0,0.00030202,30]
[424760739,1781131851000,-233.51984573,0.00030288,2]
[424760730,1781131851000,-188.44167589,0.00030288,7]
[424760732,1781131851000,-200.0,0.00030288,2]
[424760729,1781131851000,-200.0,0.00030288,2]
[424760734,1781131851000,-199.08427577,0.00030288,2]
[424760731,1781131851000,-269.92702899,0.00030288,2]
[424760733,1781131851000,-1001.0972,0.00030288,5]
[424760736,1781131851000,-169.25841594,0.00030288,2]
[424760737,1781131851000,-382.22948702,0.00030288,2]
[424760738,1781131851000,-214.4419437,0.00030288,2]
[424760735,1781131851000,-315.98830037,0.00030288,2]
[424760754,1781131851000,-182.82440843,0.00030288,2]
[424760743,1781131851000,-201.82217861,0.00030288,2]
[424760744,1781131851000,-263.8276857,0.00030288,2]
[424760745,1781131851000,-424.27116041,0.00030288,2]
[424760742,1781131851000,-265.6924333,0.00030288,2]
[424760741,1781131851000,-385.03268529,0.00030288,2]
[424760746,1781131851000,-200.3873064,0.00030288,2]
[424760750,1781131851000,-323.89609535,0.00030288,2]
[424760748,1781131851000,-325.57646544,0.00030288,2]
[424760747,1781131851000,-413.35119911,0.00030288,2]
[424760727,1781131851000,-1000.0,0.00030288,2]
[424760740,1781131851000,-150.55645213,0.00030288,2]
[424760728,1781131851000,-1004.26684243,0.00030288,2]
[424760702,1781131851000,-281.07966398,0.00030286,7]
[424760725,1781131851000,-1000.0,0.00030288,2]
[424760751,1781131851000,-365.1177954,0.00030288,2]
[424760706,1781131851000,-1000.0,0.00030288,2]
[424760705,1781131851000,-1000.0,0.00030288,2]
[424760704,1781131851000,-1000.0,0.00030288,2]
[424760703,1781131851000,-210.5690127,0.00030287,2]
[424760709,1781131851000,-1000.0,0.00030288,2]
[424760708,1781131851000,-1000.0,0.00030288,2]
[424760707,1781131851000,-1000.0,0.00030288,2]
[424760710,1781131851000,-1000.0,0.00030288,2]
[424760711,1781131851000,-1000.0,0.00030288,2]
[424760712,1781131851000,-1000.0,0.00030288,2]
[424760713,1781131851000,-1000.0,0.00030288,2]
[424760714,1781131851000,-1000.0,0.00030288,2]
[424760722,1781131851000,-1000.0,0.00030288,2]
[424760721,1781131851000,-1000.0,0.00030288,2]
[424760716,1781131851000,-1000.0,0.00030288,2]
[424760720,1781131851000,-1000.0,0.00030288,2]
[424760719,1781131851000,-1000.0,0.00030288,2]
[424760718,1781131851000,-1000.0,0.00030288,2]
[424760723,1781131851000,-1000.0,0.00030288,2]
[424760715,1781131851000,-1000.0,0.00030288,2]
[424760724,1781131851000,-1000.0,0.00030288,2]
[424760717,1781131851000,-1000.0,0.00030288,2]
[424760726,1781131851000,-1000.0,0.00030288,2]
[424760753,1781131851000,-179.16425395,0.00030288,2]
[424760765,1781131851000,-281.07966398,0.0003032,7]
[424760749,1781131851000,-183.69698338,0.00030288,2]
[424760781,1781131851000,-150.0,0.00030447,7]
[424760782,1781131851000,-281.07966398,0.00030452,7]
[424760785,1781131851000,-281.07966398,0.00030486,7]
[424760787,1781131851000,-150.0,0.0003049,7]
[424760786,1781131851000,-1001.09721,0.00030488,5]
[424760788,1781131851000,-500.1,0.00030496,3]
[424760789,1781131851000,-500.1,0.00030496,3]
[424760794,1781131851000,-281.07966398,0.00030519,7]
[424760790,1781131851000,-500.1,0.00030496,3]
[424760752,1781131851000,-228.08904723,0.00030288,2]
[424760783,1781131851000,-150.0,0.00030478,7]
[424760791,1781131851000,-500.1,0.00030496,3]
[424760793,1781131851000,-150.0,0.00030518,7]
[424760796,1781131851000,-281.07966398,0.00030552,7]
[424760801,1781131851000,-281.07966398,0.00030585,7]
[424760797,1781131851000,-150.0,0.0003056,7]
[424760803,1781131851000,-200.0,0.00030591,2]
[424760799,1781131851000,-150.0,0.00030566,7]
[424760798,1781131851000,-2115.41,0.00030561,21]
[424760800,1781131851000,-52450.409172,0.0003058,2]
[424760802,1781131851000,-150.0,0.0003059,7]
[424760804,1781131851000,-150.0,0.00030597,7]
[424760795,1781131851000,-150.0,0.00030544,7]
[424760784,1781131851000,-150.0,0.00030486,7]
[424760792,1781131851000,-500.1,0.00030496,3]
[424760779,1781131851000,-281.07966398,0.00030419,7]
[424760780,1781131851000,-150.0,0.00030437,7]